Cogmind - Beta 13 @@@ ROGUE MODE // 2024.04.02 @ 18:05:00 Player: Ralos Result: Destroyed by E7-DB9(M) with Heavy Riot Gun Performance ------------- Evolutions (1) 500 Regions Visited (5) 1000 Robots Destroyed (38) 190 Value Destroyed (740) 740 Prototype IDs (1) 20 Alien Tech Used (0) 0 Bonus (668) 668 TOTAL SCORE: 3118 Bonus ------- High Alert Combat Kills 27 Follower Combat Kills 117 Met Imprinter 300 Was Imprinted 300 Friendly Fire -76 Cogmind --------- Core Integrity 0/400 Matter 237/300 Energy 100/100 System Corruption 4% Temperature Cool (0) Movement Core (750) Ox14 Location -7/Zion Parts ------- > --- POWER (1) -------- (None) > --- PROPULSION (4) --- (None) > --- UTILITY (2) ------ High-capacity Storage Unit Advanced Signal Interpreter > --- WEAPON (2) ------- Chainsword > --- INVENTORY (20) --- Ion Engine Light Deuterium Engine Large Storage Unit Large Storage Unit Large Matter Pod (0) Sensor Array Experimental Sensor Array Advanced Terrain Scan Processor Advanced Targeting Computer Advanced Target Analyzer ECM Suite Advanced Hacking Suite Beamcaster Light Assault Rifle Rocket Launcher Mini Grenade Launcher Peak State ------------ > --- POWER ------------ Ion Engine > --- PROPULSION ------- Aluminum Leg Aluminum Leg Aluminum Leg Carbon-fiber Leg > --- UTILITY ---------- Large Storage Unit Advanced Signal Interpreter > --- WEAPON ----------- Beamcaster Rocket Launcher > --- INVENTORY -------- Ion Engine Large Storage Unit Large Matter Pod Sensor Array Experimental Sensor Array Advanced Terrain Scan Processor Advanced Targeting Computer Advanced Target Analyzer ECM Suite Advanced Hacking Suite Tractor Beam Light Assault Rifle Rocket Launcher Mini Grenade Launcher Chainsword [Rating: 24] Favorites ----------- Power Ion Engine Engine Ion Engine Propulsion Aluminum Leg Treads Light Treads Leg Aluminum Leg Wheel Wheel Utility Large Storage Unit Device Sensor Array Storage Large Storage Unit Processor Signal Interpreter Weapon Rocket Launcher Energy Gun Beamcaster Launcher Rocket Launcher Special Weapon Plasma Cutter Slashing Weapon Chainsword Build | -11 -10 -10 -9 -9 -7 ------- Run | Yrd Mat Min Mat Min Zio Slots Evolved 2 | . . . 2 . . Power . | . . . . . . Propulsion 2 | . . . 2 . . Utility . | . . . . . . Weapon . | . . . . . . Parts Attached 27 | 8 9 4 3 . 3 Power 3 | 1 1 . 1 . . Engine 3 | 1 1 . 1 . . Core . | . . . . . . Reactor . | . . . . . . Propulsion 8 | 4 . 2 2 . . Treads 2 | 2 . . . . . Leg 4 | . . 2 2 . . Wheel 2 | 2 . . . . . Hover . | . . . . . . Flight . | . . . . . . Utility 6 | 1 3 . . . 2 Device 1 | . 1 . . . . Storage 3 | 1 1 . . . 1 Processor 2 | . 1 . . . 1 Hackware . | . . . . . . Protection . | . . . . . . Artifact . | . . . . . . Weapon 10 | 2 5 2 . . 1 Energy Gun 3 | 2 . 1 . . . Energy Cannon . | . . . . . . Ballistic Gun . | . . . . . . Ballistic Cannon . | . . . . . . Launcher 4 | . 3 1 . . . Special Weapon 2 | . 2 . . . . Impact Weapon . | . . . . . . Slashing Weapon 1 | . . . . . 1 Piercing Weapon . | . . . . . . Special Melee Weapon . | . . . . . . Unidentified Prototypes . | . . . . . . Parts Lost 11 | . 3 2 . . 6 Power 2 | . 1 . . . 1 Propulsion 4 | . . . . . 4 Utility . | . . . . . . Weapon 5 | . 2 2 . . 1 Highest Loss Streak 6 | . 2 2 . . 6 To Critical Strikes 1 | . 1 . . . . Average Slot Usage (%) 97 | . 92 98 91 100 99 Engine 12 | . 13 14 11 11 11 Treads 8 | . 28 15 . . . Leg 27 | . . 12 36 44 43 Device 1 | . 7 . . . . Storage 12 | . 14 14 11 11 11 Processor 10 | . 5 14 11 11 11 Energy Gun 5 | . 6 6 11 11 3 Launcher 12 | . 13 13 11 11 10 Special Weapon 2 | . 2 7 . . . Slashing Weapon 3 | . . . . . 7 Naked Turns . | . . . . . . Heaviest Build 52 | 14 30 34 34 34 52 Greatest Support 45 | 40 40 40 45 45 45 Greatest Overweight (x) 15 | . . 1 . . 15 Average Overweight (x) . | . . . . . . Largest Inventory Capacity 20 | 8 15 15 15 15 20 Average Capacity 15 | 6 10 15 15 15 17 Most Carried 16 | 4 11 13 13 13 16 Average Carried 12 | 2 7 11 11 12 15 Final Capacity 20 | 8 15 15 15 15 20 Final Carried 16 | 4 11 11 12 13 16 Class Distribution -------------------- 80% | Mutant 19% | Scavenger-Mutant Dominant Class ---------------- Mutant | -10/Materials Mutant | -10/Mines Mutant | -9/Materials Scavenger-Mutant | -9/Mines Mutant | -7/Zion Resources | -11 -10 -10 -9 -9 -7 ----------- Run | Yrd Mat Min Mat Min Zio Matter Collected 916 | 219 160 269 86 23 159 Remotely . | . . . . . . Salvage Created 572 | . 249 79 221 23 . Parts 47 | . 25 4 14 4 . Haulers Intercepted 1 | . 1 . . . . Recyclers Shooed 2 | . 1 1 . . . Parts Field Recycled . | . . . . . . Retrieved Matter . | . . . . . . Parts Self-Destructed 4 | . . . . . 4 Prevented . | . . . . . . Kills | -11 -10 -10 -9 -9 -7 ------- Run | Yrd Mat Min Mat Min Zio Combat Hostiles Destroyed 26 | . 10 2 14 . . Guns 1 | . . . 1 . . AOE 25 | . 10 2 13 . . Classes Destroyed 9 | . 6 1 2 . . Worker 2 | . . . 2 . . Builder 3 | . 2 . . 1 . Hauler 1 | . 1 . . . . Recycler 2 | . 2 . . . . Mechanic 1 | . . 1 . . . Watcher 3 | . 2 . 1 . . Swarmer 13 | . 6 . 7 . . Grunt 10 | . 4 2 4 . . Sentry 3 | . . . 3 . . Best Kill Streak 16 | . 6 3 16 1 . Combat Bots Only 13 | . 5 2 13 . . Max Kills in Single Turn 4 | . 4 2 2 1 . Gunslinging . | . . . . . . Exploded 3 | . 3 1 2 . . Melee . | . . . . . . Uniques/NPCs Destroyed . | . . . . . . Combat | -11 -10 -10 -9 -9 -7 -------- Run | Yrd Mat Min Mat Min Zio Hostile Shots Fired 168 | . 53 12 47 . 56 Missed 57 | . 20 4 16 . 17 Damage Taken 1676 | . 555 128 374 . 619 Core 515 | . 98 11 97 . 309 Absorbed by Shields . | . . . . . . Core Remaining (%) 78 | 100 . 56 . . . Volleys Fired 78 | 2 26 11 35 3 1 Largest 2 | 1 1 2 1 1 1 Hottest 75 | 50 33 53 75 75 33 Shots Fired 78 | 2 26 11 35 3 1 Gun 17 | 2 . . 12 3 . Cannon . | . . . . . . Launcher 52 | . 26 2 23 . 1 Special 9 | . . 9 . . . Kinetic . | . . . . . . Thermal 26 | 2 . 9 12 3 . Explosive 52 | . 26 2 23 . 1 Electromagnetic . | . . . . . . Robot Hit Streak 7 | 1 4 7 4 6 . Robot Miss Streak 3 | 1 3 1 3 . 1 Penetration Max . | . . . . . . Secondary Targets . | . . . . . . Shots Hit Robots 45 | 1 11 8 22 3 . Core Hits 56 | . 22 4 24 1 5 Critical Kills . | . . . . . . Critical Parts Destroyed . | . . . . . . Critical Strikes 1 | . . . 1 . . Burn 1 | . . . 1 . . Melee Attacks 1 | . . . . . 1 Impact . | . . . . . . Slashing 1 | . . . . . 1 Piercing . | . . . . . . Sneak Attacks . | . . . . . . Combat Hostiles . | . . . . . . Follow-up Attacks . | . . . . . . Damage Inflicted 3229 | 13 1388 254 1409 65 100 Guns 248 | 13 . . 170 65 . Cannons . | . . . . . . Explosions 2912 | . 1388 185 1239 . 100 Melee . | . . . . . . Ramming . | . . . . . . Kinetic . | . . . . . . Thermal 484 | 13 . 69 337 65 . Explosive 2745 | . 1388 185 1072 . 100 Electromagnetic . | . . . . . . Impact . | . . . . . . Slashing . | . . . . . . Piercing . | . . . . . . Highest Corruption 3 | . . . . . 3 Average Corruption 1 | . . . . . 1 Corruption Purged . | . . . . . . Corruption Blocked . | . . . . . . Overload Shots . | . . . . . . Overflow Damage 296 | . 92 28 176 . . Projectiles . | . . . . . . Explosions 296 | . 92 28 176 . . Melee . | . . . . . . Knockbacks . | . . . . . . Impact . | . . . . . . Kinetic . | . . . . . . Secondary . | . . . . . . Self-Inflicted Damage 278 | . 239 39 . . . Shots 13 | . 11 2 . . . Rammed . | . . . . . . Targets Rammed . | . . . . . . Kicked . | . . . . . . Crushed . | . . . . . . Highest Temperature 307 | 10 5 2 307 28 . Average Temperature 88 | 7 2 2 124 17 . Received Heat Transfer 334 | . 96 48 150 . 40 Siege Activations . | . . . . . . Robots Corrupted . | . . . . . . Combat Hostiles . | . . . . . . Parts Fried . | . . . . . . Impact Corruptions . | . . . . . . Robots Melted . | . . . . . . Combat Hostiles . | . . . . . . Parts Melted 2 | . . 1 1 . . Heat Transferred 840 | 37 . 222 470 111 . Parts Sabotaged . | . . . . . . Parts Stolen . | . . . . . . Parts Stripped . | . . . . . . Power Chain Reactions . | . . . . . . Alert | -11 -10 -10 -9 -9 -7 ------- Run | Yrd Mat Min Mat Min Zio Peak Influence 542 | . 295 75 542 216 . Initial 211 | . . 75 . 211 . Average 131 | . 150 67 301 212 . Maximum Alert Level 2 | . 1 . 2 1 . Low Security (%) 77 | 100 76 100 42 . . Level 1 14 | . 23 . 3 100 . Level 2 7 | . . . 53 . . Level 3 . | . . . . . . Level 4 . | . . . . . . Level 5 . | . . . . . . High Security . | . . . . . . Max Security . | . . . . . . Squads Dispatched 3 | . 1 1 1 . . Investigation . | . . . . . . Extermination . | . . . . . . Reinforcement 2 | . 1 . 1 . . Assault 1 | . . 1 . . . Garrison . | . . . . . . Intercept . | . . . . . . Searches Triggered . | . . . . . . Construction Impeded . | . . . . . . Haulers Reinforced . | . . . . . . Active Scanning Responses . | . . . . . . Cargo Convoy Interrupts . | . . . . . . Stealth | -11 -10 -10 -9 -9 -7 --------- Run | Yrd Mat Min Mat Min Zio Distress Signals 2 | . 1 . 1 . . Communications Jammed . | . . . . . . Distress Signals . | . . . . . . Times Spotted 45 | . 17 5 16 . 7 Peak Tracking Total 10 | . 5 3 10 . 6 Tactical Retreats . | . . . . . . Traps | -11 -10 -10 -9 -9 -7 ------- Run | Yrd Mat Min Mat Min Zio Traps Triggered . | . . . . . . Indirectly . | . . . . . . Trap Hack Attempts . | . . . . . . Triggered . | . . . . . . Disarmed . | . . . . . . Reprogrammed . | . . . . . . Reused . | . . . . . . Traps Extracted . | . . . . . . Installed . | . . . . . . Triggered . | . . . . . . Machines | -11 -10 -10 -9 -9 -7 ---------- Run | Yrd Mat Min Mat Min Zio Machines Disabled 3 | . . . 3 . . Max in Single Turn 1 | . . . 1 . . Machines Repaired . | . . . . . . Machines Dismantled . | . . . . . . Machines Sabotaged . | . . . . . . Overloaded Fab Kills . | . . . . . . Hacking | -11 -10 -10 -9 -9 -7 --------- Run | Yrd Mat Min Mat Min Zio Machines Accessed 1 | . 1 . . . . Terminals 1 | . 1 . . . . Fabricators . | . . . . . . Repair Stations . | . . . . . . Recycling Units . | . . . . . . Scanalyzers . | . . . . . . Garrison Access . | . . . . . . Total Hacks 3 | . 3 . . . . Successful 1 | . 1 . . . . Failed 2 | . 2 . . . . Catastrophic 1 | . 1 . . . . Database Lockouts . | . . . . . . Manual . | . . . . . . Terminals 3 | . 3 . . . . Fabricators . | . . . . . . Repair Stations . | . . . . . . Recycling Units . | . . . . . . Scanalyzers . | . . . . . . Garrison Access . | . . . . . . Terminal Hacks 1 | . 1 . . . . Robot Analysis 1 | . 1 . . . . Fabricator Hacks . | . . . . . . Repair Station Hacks . | . . . . . . Recycling Unit Hacks . | . . . . . . Scanalyzer . | . . . . . . Garrison Access Hacks . | . . . . . . Unauthorized Hacks . | . . . . . . Terminals . | . . . . . . Fabricators . | . . . . . . Repair Stations . | . . . . . . Recycling Units . | . . . . . . Scanalyzers . | . . . . . . Garrison Access . | . . . . . . Data Cores Recovered . | . . . . . . Used . | . . . . . . Hacking Detections 1 | . 1 . . . . Full Trace Events . | . . . . . . Feedback Events . | . . . . . . Feedback Blocked . | . . . . . . Robot Schematics Acquired 3 | . . . . . 3 Robots Built . | . . . . . . Authchips . | . . . . . . Time . | . . . . . . Total Robot Build Rating . | . . . . . . Part Schematics Acquired 16 | . . . . . 16 Parts Built . | . . . . . . Authchips . | . . . . . . Time . | . . . . . . Total Part Build Rating . | . . . . . . Parts Repaired . | . . . . . . Time . | . . . . . . Parts Recycled . | . . . . . . Recycled Matter . | . . . . . . Retrieved Matter . | . . . . . . Retrieved Components . | . . . . . . Parts Scanalyzed . | . . . . . . Part Schematics Acquired . | . . . . . . Parts Damaged . | . . . . . . Bothacking | -11 -10 -10 -9 -9 -7 ------------ Run | Yrd Mat Min Mat Min Zio Used RIF Installer . | . . . . . . Robots Hacked . | . . . . . . Non-combat . | . . . . . . Combat . | . . . . . . Robot Hacks Applied . | . . . . . . Relay Couplers Released . | . . . . . . Fabnet Peak Effective % . | . . . . . . Robots Rewired . | . . . . . . Allies Hacked . | . . . . . . Hacks Repelled . | . . . . . . Allies | -11 -10 -10 -9 -9 -7 -------- Run | Yrd Mat Min Mat Min Zio Total Allies 5 | . . 1 . . 4 Largest Group 4 | . . 1 . . 4 Highest-Rated Group 158 | . . 31 . . 158 Highest-Rated Ally 41 | . . 31 . . 41 Total Orders . | . . . . . . Ally Attacks 18 | . . 8 . . 10 Total Damage 315 | . . 168 . . 147 Kills 3 | . . 2 . . 1 Allies Corrupted . | . . . . . . Allies Melted . | . . . . . . Intel | -11 -10 -10 -9 -9 -7 ------- Run | Yrd Mat Min Mat Min Zio Robot Analysis Total 1 | . 1 . . . . Derelict Logs Recovered 2 | . . 1 . . 1 Drone Launches . | . . . . . . Drone Recoveries . | . . . . . . Exploration | -11 -10 -10 -9 -9 -7 ------------- Run | Yrd Mat Min Mat Min Zio Turns Passed 3508 | 96 573 868 272 145 1554 Spaces Moved 2109 | 49 307 477 161 116 999 Core 7 | 6 . . . . 1 Treads 622 | 43 307 272 . . . Legs 1480 | . . 205 161 116 998 Wheels . | . . . . . . Hover . | . . . . . . Flight . | . . . . . . Fastest Speed 50 | 50 160 160 120 120 120 Average Speed 154 | 146 160 172 120 120 153 Slowest Speed 800 | 160 160 190 120 120 800 Overloaded Moves . | . . . . . . Propulsion Burnouts . | . . . . . . Robots Hopped . | . . . . . . Cave-ins Triggered . | . . . . . . Exploration Rate (%) 40 | 5 47 55 26 21 88 Regions Visited 5 Branch Regions 3 Pre-discovered Areas 1 | . . . . . 1 Known Exits Taken 4 | . 1 1 1 1 . Unknown Exits Taken 1 | 1 . . . . . Scrap Searched 4 | . . 1 . . 3 Spaces Dug . | . . . . . . Terrain Destroyed 295 | . 139 24 125 . 7 Melee . | . . . . . . Projectile 1 | . . . 1 . . AOE 294 | . 139 24 124 . 7 Terrain Rammed . | . . . . . . Walls Destroyed . | . . . . . . Machines Disabled . | . . . . . . Actions | -11 -10 -10 -9 -9 -7 --------- Run | Yrd Mat Min Mat Min Zio Total 2277 | 72 363 499 205 119 1019 Wait . | . . . . . . Move 2104 | 48 306 476 160 115 999 Hop . | . . . . . . Pick Up 45 | 11 15 5 5 1 8 Fast Attach 5 | 1 3 . . . 1 Attach 14 | 7 3 2 2 . . Detach 1 | 1 . . . . . Swap 8 | . 3 2 1 . 2 Drop 21 | 2 7 3 2 . 7 Fire 78 | 2 26 11 35 3 1 Melee 1 | . . . . . 1 Ram . | . . . . . . Kick . | . . . . . . Crush . | . . . . . . Escape Stasis . | . . . . . . Rewire . | . . . . . . Trap . | . . . . . . Miscellaneous . | . . . . . . Route ------- -11/Scrapyard -10/Materials (discovered 2 exits: *Mat / *Min) -10/Mines -9/Materials -9/Mines -7/Zion History --------- Turn | Location | Event 16 | -11/Scrapyard | Discovered new exit (range 15) 97 | -11/Scrapyard | Entered Materials 308 | -10/Materials | Build established: Mutant 436 | -10/Materials | Discovered new exit (range 16) 460 | -10/Materials | Identified exit to Materials 574 | -10/Materials | Discovered new exit (range 15) 668 | -10/Materials | Identified exit to Mines 670 | -10/Materials | Entered Mines 691 | -10/Mines | Discovered exit to Materials (range 7) 951 | -10/Mines | Learned Materials garrison access intel 965 | -10/Mines | Met a Derelict testing a Signal Generator 1538 | -10/Mines | Entered Materials 1538 | -9/Materials | Evolved 2 slots: Propulsion x2 1706 | -9/Materials | Destroyed 13 combat bots 1778 | -9/Materials | Discovered new exit (range 15) 1809 | -9/Materials | Identified exit to Mines 1810 | -9/Materials | Entered Mines 1921 | -9/Mines | Found a damaged Exp. Sensor Array with a note attached 1923 | -9/Mines | Found Prototype Device 1952 | -9/Mines | A Derelict revealed a hidden shortcut to a safe place 1954 | -9/Mines | Identified exit to Zion 1955 | -9/Mines | Entered Zion 1975 | -7/Zion | Given A8's code to call for help 2029 | -7/Zion | Build established: Scavenger-Mutant 2220 | -7/Zion | Learned Factory emergency access door positions 2562 | -7/Zion | Learned location of Recycling (-7) 2581 | -7/Zion | Acquired unknown access codes intercepted by a Zionite 2702 | -7/Zion | Build established: Mutant 2721 | -7/Zion | Imprinted 2723 | -7/Zion | Declared Zion's savior 3499 | -7/Zion | Attacked by Zionites 3500 | -7/Zion | Spotted B9-KF1(B) 3500 | -7/Zion | Spotted 4W-1YV(B) 3506 | -7/Zion | Core integrity fell below 50% 3508 | -7/Zion | Core integrity fell below 20% 3509 | -7/Zion | Destroyed by E7-DB9(M) with Heavy Riot Gun Last Messages --------------- 03493_ PUBLIC SERVICE ANNOUNCEMENT: Unaware detected at Zion entryway. Avoid the area unless you're armed and dangerous. 03493_ QG-B8X(z) tranforms to reveal an H-77 Assassin. 03494_ Slug penetrates Wall. 03494_ Penetrated by Slug. 03494_ Carbon-fiber Leg destroyed. 03494_ H-77 Assassin knocked back. 03497_ Slug penetrates P9-X0N(M). 03499_ H-77 Assassin system terminally corrupted. 03499_ PUBLIC SERVICE ANNOUNCEMENT: Zion is under attack! Defend our home! 03499_ Rocket Launcher destroyed. 03499_ Slug penetrates E7-DB9(M). 03500_ Aluminum Leg destroyed. 03505_ Penetrated by Slug. 03507_ Ion Engine destroyed. 03508_ Knocked back. Map ----- +----------------------------------------------------+ | """""""""""##""""""""#??????????????????????????? | | """ "#""" ""#"##?????????????????????????? | | """" """"##????????????????????????? | | "" """#????????????????????????? | | "#?????????????????????????? | | """#?????????????????????????? | | ""##?????????????????????????? | | """#?????????????????????????? | | ""#?????????????????????????? | | "" "##?????????????????????????? | | "" ""#?????????????????????????? | | """" " "" """#?????????????????????????? | | """" "" """ ""##?????????????????????????? | | #""" """""" "##??????????????????????????# | | ###" """"#""" ""#???????????????????????????# | | "#"" ""####"" ""#???????????????????????????# | | #"" ""#??#"" ""###?????????????????????????# | | #" "#####"" """"#?????????????????????????# | | #" """#"##" "##???????????????????????### | | #" """""#"" ""##??????????????????####?# | | #" " """" """#?????????????????## ##?# | | """"" """" "##??###?##?????????# ##?# | | """"" """"" """""#?##%## ####?????## ##? | | "##"" ""##"" """""#?#BB" ####### ## | | ??#"" """"" ! ""###BB """""""# # | | ??#"" ""#"" ""##@ """""""## | | ??#"" """"""" """ ""# % % [%[ ## | | ??#"" """"""" """ MMBB % ### | | ??#"" #"####""""#" MMBB #??# | | ?##"" #"##?##""#"" " # ## #??# | | ?#""" #""#??""#"#" ""### """ """""## #### | | ?###" """#??"""""" "##?# """"""""""### ## | | ??#"" """#?" "#??# "############?## | | ??##" """#"" """""""??#####?????????????# | | ??#"" """#"" ""##"""????????????????????# | | ?##"" """"" """"##????????????????????# | | ?#""" """" """##"#??????????????????# | | ?###" """ " """"##?????????????????## | | ??##" """??????????????????## # | | ??#"" "" """????????????????????# # | | ###"" """ """"""#?????????????????????# # | | "#""" """ """"###?????????????????????## # | | """"" """ """""#??????????????????????## ## | | """""" "#???????????????????????####? | | """""" ""##??????????????????????????? | | "" """"#??????????????????????????? | | """"##?????????????????????????? | | """#????????????????????????? | | """ ""#????????????????????????? | | """ """"" ""##????????????????????????? | +----------------------------------------------------+ Best States ------------- Heat Dissipation 28 Energy Generation 10 Energy Capacity 250 Matter Stores 263 Matter Capacity 300 Sight Range 16 Robot Scan Range 14 Terrain Scan Density 10 Evasion (%) 55 Recoil Reduction 2 Item Schematics ----------------- Imp. Shock Absorption System | -7/Zion | Archive Adv. Terrain Scanner | -7/Zion | Archive Mak. Terrain Scan Processor | -7/Zion | Archive Power Sword | -7/Zion | Archive Mak. Hammer | -7/Zion | Archive Beamcaster | -7/Zion | Archive Matter Filter | -7/Zion | Archive Shock Absorption System | -7/Zion | Archive Focal Shield | -7/Zion | Archive Gatling Laser | -7/Zion | Archive Remote Shield | -7/Zion | Archive Force Booster | -7/Zion | Archive Imp. Particle Charger | -7/Zion | Archive Corruption Screen | -7/Zion | Archive Imp. Arc Projector | -7/Zion | Archive Tiamat Missile Launcher | -7/Zion | Archive Robot Schematics ------------------ R-06 Scavenger | -7/Zion | Archive A-02 Transporter | -7/Zion | Archive D-53 Grenadier | -7/Zion | Archive Fabricated ------------ Nothing Alien Tech Used ----------------- None Achievements -------------- Oops Remodeling Robot Respite The One Challenges ------------ None Game ------ Seed CommCloakingThrower Manual? 0 Play Time 01:07:19 Cumulative 6.5 hours Start 2024.04.02 @ 16:36:48 End 2024.04.02 @ 18:05:00 Sessions 2 Manual Loads 0 Difficulty Rogue Special Mode None Game No. 6 Rogue 6 Adventurer 0 Explorer 0 Win Type - Total 0 Types 0/0/0/0/0/0/0/0/0 Lore% 9 Gallery% 12 Achievement% 8 Wizard Run 0 Options --------- Layout 2 ASCII 0 Keyboard 0 Movement Mouse Keybinds 0 Fullscreen 2 Font 32/Cog Map View 50x44 Zoom Use 0% Tactical HUD 1 Map Filters NONE Filters NONE Steam 1 RUN: 20f2ad4f-f9a6-4140-a2bb-0fa86bbfa8a9